Cogmind - Beta 15 @@@ ROGUE MODE // 2025.08.10 @ 18:43:47 Player: Skysub Result: Destroyed by 1W-YCH(R) with Subdweller Laser Performance ------------- Evolutions (0) 0 Regions Visited (3) 600 Robots Destroyed (40) 200 Value Destroyed (866) 866 Prototype IDs (11) 220 Alien Tech Used (0) 0 Bonus (111) 111 TOTAL SCORE: 1997 Bonus ------- Follower Combat Kills 111 Cogmind --------- Core Integrity 0/250 Matter 94/300 Energy 250/250 System Corruption 0% Temperature Cool (6) Movement Treading (320) Ox2 Location -10/Subcaves Parts ------- > --- POWER (1) -------- Ion Engine > --- PROPULSION (2) --- Light Treads Compact Wheel > --- UTILITY (2) ------ High-capacity Storage Unit Makeshift Light Armor Plating > --- WEAPON (2) ------- Grenade Launcher Grenade Launcher > --- INVENTORY (20) --- Subdweller Power Source Subdweller Power Source Light Treads Light Treads Subdweller Monowheel Subdweller Monowheel Improved Heat Sink Structural Scanner Subdweller Optics Light Armor Plating Makeshift Light Armor Plating Tower Shield Subdweller Laser Subdweller Laser Subdweller Beam Cannon Subdweller Beam Cannon Subdweller Beam Cannon Subdweller Beam Cannon Makeshift Spear Peak State ------------ > --- POWER ------------ Ion Engine > --- PROPULSION ------- Light Treads Compact Wheel > --- UTILITY ---------- High-capacity Storage Unit Makeshift Light Armor Plating > --- WEAPON ----------- Grenade Launcher Makeshift Spear > --- INVENTORY -------- Subdweller Power Source Subdweller Power Source Light Treads Light Treads Subdweller Monowheel Subdweller Monowheel Improved Heat Sink Structural Scanner Subdweller Optics Light Armor Plating Makeshift Light Armor Plating Tower Shield Subdweller Laser Subdweller Laser Subdweller Beam Cannon Subdweller Beam Cannon Subdweller Beam Cannon Subdweller Beam Cannon Grenade Launcher [Rating: 18] Favorites ----------- Power Ion Engine Engine Ion Engine Propulsion Light Treads Treads Light Treads Wheel Compact Wheel Utility High-capacity Storage Unit Device Seismic Detector Storage High-capacity Storage Unit Protection Makeshift Light Armor Plating Weapon Assault Rifle Energy Gun Small Laser Energy Cannon Subdweller Beam Cannon Ballistic Gun Assault Rifle Launcher Grenade Launcher Special Weapon Mining Laser Piercing Weapon Makeshift Spear Build | -11 -10 -10 -10 ------- Run | Yrd Mat Min Sub Slots Evolved . | . . . . Power . | . . . . Propulsion . | . . . . Utility . | . . . . Weapon . | . . . . Parts Attached 27 | 7 5 3 12 Power 3 | 1 . 1 1 Engine 3 | 1 . 1 1 Core . | . . . . Reactor . | . . . . Propulsion 6 | 2 2 1 1 Treads 5 | 2 2 . 1 Leg . | . . . . Wheel 1 | . . 1 . Hover . | . . . . Flight . | . . . . Utility 6 | 2 1 1 2 Device 1 | 1 . . . Storage 3 | 1 1 1 . Processor . | . . . . Hackware . | . . . . Protection 2 | . . . 2 Artifact . | . . . . Weapon 12 | 2 2 . 8 Energy Gun 1 | 1 . . . Energy Cannon 4 | . . . 4 Ballistic Gun 3 | 1 2 . . Ballistic Cannon . | . . . . Launcher 2 | . . . 2 Special Weapon 1 | . . . 1 Impact Weapon . | . . . . Slashing Weapon . | . . . . Piercing Weapon 1 | . . . 1 Special Melee Weapon . | . . . . Unidentified Prototypes . | . . . . Parts Lost 4 | . . 1 3 Power 1 | . . 1 . Propulsion 1 | . . . 1 Utility . | . . . . Weapon 2 | . . . 2 Highest Loss Streak 1 | . . 1 1 To Critical Strikes . | . . . . Average Backups 13 | 3 7 10 17 Power 1 | . . . 1 Propulsion 3 | 1 2 4 4 Utility 3 | . . 1 4 Weapon 5 | 1 3 5 6 Tool/Special . | . . . . Unused Backups 21 | . 3 . 18 Power 4 | . 1 . 3 Propulsion 4 | . . . 4 Utility 8 | . 1 . 7 Weapon 5 | . 1 . 4 Tool/Special . | . . . . Average Slot Usage (%) 99 | . 100 99 99 Engine 13 | . 14 13 14 Treads 18 | . 28 23 13 Wheel 9 | . . 4 14 Device 6 | . 14 14 1 Storage 14 | . 14 14 14 Protection 7 | . . . 12 Energy Gun 2 | . 10 . . Energy Cannon 9 | . . . 15 Ballistic Gun 13 | . 17 28 6 Launcher 1 | . . . 2 Peak Build Rating 18 | 7 8 8 18 Average Rating 10 | 6 7 7 13 On Entrance 5 | . 7 8 8 Naked Turns . | . . . . Heaviest Build 65 | 13 20 50 65 Greatest Support 40 | 40 40 40 16 Greatest Overweight (x) 4 | 1 . 3 4 Average Overweight (x) 2 | . . . 3 Largest Inventory Capacity 20 | 8 10 20 20 Average Capacity 15 | 7 8 13 20 Most Carried 20 | 5 10 12 20 Average Carried 13 | 3 7 10 17 Final Capacity 20 | 8 10 20 20 Final Carried 20 | 5 10 12 20 Class Distribution -------------------- 100% | Mutant Dominant Class ---------------- Mutant | -10/Materials Mutant | -10/Mines Mutant | -10/Subcaves Resources | -11 -10 -10 -10 ----------- Run | Yrd Mat Min Sub Matter Collected 801 | 281 80 211 229 Remotely . | . . . . Salvage Created 1113 | 181 357 66 509 Parts 87 | 14 29 7 37 Haulers Intercepted 2 | . 2 . . Recyclers Shooed 1 | . 1 . . Parts Field Recycled . | . . . . Retrieved Matter . | . . . . Parts Self-Destructed 9 | . . . 9 Prevented . | . . . . Kills | -11 -10 -10 -10 ------- Run | Yrd Mat Min Sub Combat Hostiles Destroyed 26 | . 6 3 17 Melee 1 | . . . 1 Guns 9 | . 6 3 . Cannons 4 | . . . 4 AOE 10 | . . . 10 Classes Destroyed 10 | 2 7 . 1 Worker 1 | . 1 . . Builder 1 | . 1 . . Tunneler 6 | 5 1 . . Hauler 2 | . 2 . . Recycler 1 | 1 . . . Operator 1 | . 1 . . Watcher 2 | . 2 . . Swarmer 9 | . 3 2 4 Grunt 6 | . 3 1 2 Subdweller 11 | . . . 11 Best Kill Streak 3 | 3 3 2 3 Combat Bots Only 3 | . 3 2 3 Max Kills in Single Turn 2 | 1 1 1 2 Gunslinging . | . . . . Exploded 2 | . . . 2 Melee 1 | . . . 1 Uniques/NPCs Destroyed . | . . . . Combat | -11 -10 -10 -10 -------- Run | Yrd Mat Min Sub Hostile Shots Fired 122 | . 35 45 42 Missed 31 | . 9 8 14 Hits 91 | . 26 37 28 Projectile 91 | . 26 37 28 Critical Strikes 4 | . . 2 2 Damage Taken 1277 | . 235 401 641 Core 264 | . 55 13 196 Absorbed by Shields . | . . . . Core Remaining (%) 100 | 100 . . . Volleys Fired 133 | 11 51 21 50 Largest 2 | 2 2 2 2 Hottest 160 | 60 60 40 160 Shots Fired 236 | 22 102 42 70 Gun 176 | 22 102 42 10 Cannon 30 | . . . 30 Launcher 24 | . . . 24 Special 6 | . . . 6 Kinetic 122 | 11 59 42 10 Thermal 90 | 11 43 . 36 Explosive 24 | . . . 24 Electromagnetic . | . . . . Robot Hit Streak 13 | 6 8 9 13 Robot Miss Streak 6 | 2 6 3 2 Penetration Max . | . . . . Secondary Targets . | . . . . Shots Hit Robots 129 | 13 56 29 31 Core Hits 64 | 9 24 9 22 Critical Kills 2 | . . . 2 Critical Parts Destroyed . | . . . . Critical Strikes 3 | . . . 3 Meltdown 2 | . . . 2 Impale 1 | . . . 1 Melee Attacks 8 | . . . 8 Impact . | . . . . Slashing . | . . . . Piercing 8 | . . . 8 Sneak Attacks . | . . . . Combat Hostiles . | . . . . Follow-up Attacks . | . . . . Damage Inflicted 2249 | 126 572 405 1146 Guns 1152 | 126 567 405 54 Cannons 295 | . . . 295 Explosions 689 | . . . 689 Melee 108 | . . . 108 Ramming 5 | . 5 . . Kinetic 769 | 39 271 405 54 Thermal 678 | 87 296 . 295 Explosive 689 | . . . 689 Electromagnetic . | . . . . Impact . | . . . . Slashing . | . . . . Piercing 108 | . . . 108 Highest Corruption . | . . . . Average Corruption . | . . . . Corruption Purged . | . . . . Corruption Blocked . | . . . . Overload Shots . | . . . . Overflow Damage 23 | . . . 23 Projectiles . | . . . . Explosions . | . . . . Melee 23 | . . . 23 Knockbacks . | . . . . Impact . | . . . . Kinetic . | . . . . Secondary . | . . . . Self-Inflicted Damage 49 | . . . 49 Shots 4 | . . . 4 Rammed 3 | . 3 . . Targets Rammed 3 | . 3 . . Kicked . | . . . . Crushed . | . . . . Highest Temperature 180 | 40 102 26 180 Average Temperature 27 | 16 30 9 31 Received Heat Transfer 390 | . 66 189 135 Siege Activations . | . . . . Martial Activations . | . . . . Shielding Activations . | . . . . Robots Disrupted . | . . . . Combat Hostiles . | . . . . Robots Corrupted . | . . . . Combat Hostiles . | . . . . Parts Fried . | . . . . Impact Corruptions . | . . . . Robots Melted 2 | . . . 2 Combat Hostiles 2 | . . . 2 Parts Melted 6 | . 3 . 3 Heat Transferred 1257 | 200 650 . 407 Parts Sabotaged . | . . . . Parts Stolen . | . . . . Parts Stripped . | . . . . Power Chain Reactions . | . . . . Alert | -11 -10 -10 -10 ------- Run | Yrd Mat Min Sub Maximum Alert Level . | . . . . Low Security (%) 100 | 100 100 100 . Level 1 . | . . . . Level 2 . | . . . . Level 3 . | . . . . Level 4 . | . . . . Level 5 . | . . . . High Security . | . . . . Max Security . | . . . . Peak Influence 88 | 5 75 88 . Initial . | . . . . Average 15 | 1 22 13 . Influence Increases 719 | 30 250 224 215 Destroy 0b10 Robot/C 400 | . 120 160 120 Destroy 0b10 Robot/NC 70 | 30 40 . . Destroy Leader 78 | . 28 30 20 Allied During Kill 19 | . . 19 . Successful Hack 17 | . 17 . . Select Force Hacks 30 | . 30 . . Lose Combat Pursuer 105 | . 15 15 75 Influence Decreases 594 | 30 250 152 162 Entered New Map 38 | . . . 38 Time Decay 536 | 30 250 142 114 Lost Part 20 | . . 10 10 Squads Dispatched 1 | . 1 . . Investigation 1 | . 1 . . Extermination . | . . . . Reinforcement . | . . . . Assault . | . . . . Garrison . | . . . . Intercept . | . . . . Searches Triggered . | . . . . Construction Impeded . | . . . . Haulers Reinforced . | . . . . Active Scanning Responses . | . . . . Cargo Convoy Interrupts . | . . . . Stealth | -11 -10 -10 -10 --------- Run | Yrd Mat Min Sub Distress Signals . | . . . . Communications Jammed . | . . . . Distress Signals . | . . . . Times Spotted 48 | . 15 10 23 Peak Tracking Total 5 | . 4 3 5 Tactical Retreats 3 | . 1 1 1 Traps | -11 -10 -10 -10 ------- Run | Yrd Mat Min Sub Traps Triggered 1 | . . . 1 Indirectly . | . . . . Trap Hack Attempts . | . . . . Triggered . | . . . . Disarmed . | . . . . Reprogrammed . | . . . . Reused . | . . . . Traps Extracted . | . . . . Installed . | . . . . Triggered . | . . . . Machines | -11 -10 -10 -10 ---------- Run | Yrd Mat Min Sub Machines Disabled 1 | . . . 1 Max in Single Turn 1 | . . . 1 Machines Repaired . | . . . . Machines Dismantled . | . . . . Machines Sabotaged . | . . . . Overloaded Fab Kills . | . . . . Hacking | -11 -10 -10 -10 --------- Run | Yrd Mat Min Sub Machines Accessed 10 | . 8 . 2 Terminals 6 | . 6 . . Fabricators . | . . . . Repair Stations . | . . . . Recycling Units 2 | . 2 . . Scanalyzers . | . . . . Garrison Access . | . . . . Total Hacks 29 | . 25 . 4 Successful 21 | . 17 . 4 Failed 8 | . 8 . . Catastrophic 1 | . 1 . . Database Lockouts . | . . . . Manual 17 | . 17 . . Terminals 19 | . 19 . . Fabricators . | . . . . Repair Stations . | . . . . Recycling Units 6 | . 6 . . Scanalyzers . | . . . . Garrison Access . | . . . . Terminal Hacks 9 | . 5 . 4 Record 3 | . . . 3 Robot Analysis 2 | . 2 . . Terminal Index 1 | . 1 . . Locate Traps 1 | . 1 . . Zone Layout 1 | . 1 . . Proto ID Catalog 1 | . . . 1 Fabricator Hacks . | . . . . Repair Station Hacks . | . . . . Recycling Unit Hacks 2 | . 2 . . Report Inventory 2 | . 2 . . Scanalyzer . | . . . . Garrison Access Hacks . | . . . . Unauthorized Hacks 10 | . 10 . . Terminals 9 | . 9 . . Botnet 4 | . 4 . . Skim 5 | . 5 . . Fabricators . | . . . . Repair Stations . | . . . . Recycling Units 1 | . 1 . . Tunnel 1 | . 1 . . Scanalyzers . | . . . . Garrison Access . | . . . . Data Cores Recovered 1 | . 1 . . Used 1 | . 1 . . Hacking Detections 7 | . 7 . . Full Trace Events 1 | . 1 . . Feedback Events . | . . . . Feedback Blocked . | . . . . Robot Schematics Acquired . | . . . . Robots Built . | . . . . Authchips . | . . . . Time . | . . . . Total Robot Build Rating . | . . . . Part Schematics Acquired . | . . . . Parts Built . | . . . . Authchips . | . . . . Time . | . . . . Total Part Build Rating . | . . . . Parts Repaired . | . . . . Time . | . . . . Parts Recycled . | . . . . Recycled Matter . | . . . . Retrieved Matter . | . . . . Retrieved Components . | . . . . Parts Scanalyzed . | . . . . Part Schematics Acquired . | . . . . Parts Damaged . | . . . . Bothacking | -11 -10 -10 -10 ------------ Run | Yrd Mat Min Sub Used RIF Installer . | . . . . Robots Hacked . | . . . . Non-combat . | . . . . Combat . | . . . . Robot Hacks Applied . | . . . . Relay Couplers Released . | . . . . Fabnet Peak Effective % . | . . . . Robots Rewired . | . . . . Allies Hacked . | . . . . Hacks Repelled . | . . . . Allies | -11 -10 -10 -10 -------- Run | Yrd Mat Min Sub Total Allies 3 | . . 3 . Largest Group 3 | . . 3 3 Highest-Rated Group 40 | . . 40 40 Highest-Rated Ally 16 | . . 16 16 Total Orders . | . . . . Ally Attacks 46 | . . 31 15 Total Damage 392 | . . 227 165 Kills 6 | . . 5 1 Allies Corrupted . | . . . . Allies Melted . | . . . . Intel | -11 -10 -10 -10 ------- Run | Yrd Mat Min Sub Active Infowar (turns) 1949 | 167 732 771 279 Seismic 1949 | 167 732 771 279 Robot Analysis Total 2 | . 2 . . Derelict Logs Recovered 3 | . . 1 2 Drone Launches . | . . . . Drone Recoveries . | . . . . Exploration | -11 -10 -10 -10 ------------- Run | Yrd Mat Min Sub Turns Passed 4087 | 262 732 771 2322 Spaces Moved 2305 | 137 348 418 1402 Core 4 | 4 . . . Treads 780 | 133 348 299 . Legs . | . . . . Wheels 1521 | . . 119 1402 Hover . | . . . . Flight . | . . . . Fastest Speed 50 | 50 160 130 145 Average Speed 153 | 157 160 155 150 Slowest Speed 160 | 160 160 160 160 Overloaded Moves . | . . . . Propulsion Burnouts . | . . . . Robots Hopped . | . . . . Potential Cave-ins . | . . . . Cave-ins Triggered . | . . . . Exploration Rate (%) 57 | 8 57 80 85 Regions Visited 3 Branch Regions 2 Pre-discovered Areas 3 | . 1 . 2 Known Exits Taken 2 | . 1 1 . Unknown Exits Taken 1 | 1 . . . Scrap Searched 9 | . . 2 7 Spaces Dug 53 | . . . 53 Terrain Destroyed 162 | . . . 162 Melee 4 | . . . 4 Projectile 4 | . . . 4 AOE 154 | . . . 154 Terrain Rammed . | . . . . Walls Destroyed . | . . . . Machines Disabled . | . . . . Actions | -11 -10 -10 -10 --------- Run | Yrd Mat Min Sub Total 2614 | 160 432 496 1526 Wait 83 | . 12 52 19 Move 2302 | 136 347 417 1402 Hop . | . . . . Pick Up 34 | 6 7 2 19 Fast Attach 8 | 6 1 1 . Attach 4 | 1 . . 3 Detach . | . . . . Swap 20 | . 4 2 14 Drop 19 | . 7 1 11 Fire 133 | 11 51 21 50 Melee 8 | . . . 8 Ram . | . . . . Kick . | . . . . Crush 3 | . 3 . . Escape Stasis . | . . . . Rewire . | . . . . Trap . | . . . . Miscellaneous . | . . . . Route ------- -11/Scrapyard -10/Materials (discovered 3 exits: *Mat / *Min x2) -10/Mines (discovered 4 exits: *Mat x2 / [*Exi] / *Sub) -10/Subcaves (discovered 3 exits: *Mat x2 / *Rec) History --------- Turn | Location | Event 32 | -11/Scrapyard | Discovered new exit (range 15) 263 | -11/Scrapyard | Entered Materials 302 | -10/Materials | Build established: Mutant 393 | -10/Materials | Discovered new exit (range 12) 546 | -10/Materials | Learned location of 2 exits from Mines 570 | -10/Materials | Learned Storage stockpile data 586 | -10/Materials | Learned Storage trap positions 594 | -10/Materials | Learned location of 2 exits from Subcaves 595 | -10/Materials | Learned Storage non-interactive machine intel 603 | -10/Materials | Identified exit to Mines 648 | -10/Materials | Learned Storage trap positions 980 | -10/Materials | Discovered exit to Mines (range 9) 995 | -10/Materials | Entered Mines 996 | -10/Mines | Identified exit to Materials 996 | -10/Mines | Identified exit to Subcaves 1257 | -10/Mines | Assisted by bots powering up and referring to "LRC-V3" 1282 | -10/Mines | Deemed a non-threat by the Exiles lab entrance 1282 | -10/Mines | Discovered new exit (range 5) 1421 | -10/Mines | Discovered exit to Materials (range 12) 1559 | -10/Mines | Learned Materials terminal intel 1766 | -10/Mines | Entered Subcaves 1766 | -10/Subcaves | Accompanied by 3 allies 1767 | -10/Subcaves | Identified exit to Recycling 1768 | -10/Subcaves | Identified exit to Materials 1834 | -10/Subcaves | A swath of the cavern ceiling suddenly collapsed 2016 | -10/Subcaves | Shifting Twisted Machinery released Sub. Beam Cannon 2025 | -10/Subcaves | Core integrity fell below 50% 2538 | -10/Subcaves | Disturbed a concealed Subdweller 2849 | -10/Subcaves | Learned Materials emergency access door positions 2890 | -10/Subcaves | Core integrity fell below 20% 3212 | -10/Subcaves | Visited Clippyterm 3217 | -10/Subcaves | Learned location of Deep Caves (-6) 3414 | -10/Subcaves | Shifting Twisted Machinery released Battle Rifle 3417 | -10/Subcaves | Shifting Twisted Machinery released Hvy. Riot Gun 3534 | -10/Subcaves | Shifting Twisted Machinery released Mak. Spear 3607 | -10/Subcaves | Shifting Twisted Machinery released Sub. Optics 3655 | -10/Subcaves | Visited 4L-MR0's lab 3675 | -10/Subcaves | Found Tower Shield 3765 | -10/Subcaves | Ambushed by Subdwellers from Twisted Machinery 4059 | -10/Subcaves | Ambushed by Subdweller buried in earth 4062 | -10/Subcaves | Ambushed by Subdweller buried in earth 4077 | -10/Subcaves | Ambushed by Subdweller buried in earth 4088 | -10/Subcaves | Destroyed by 1W-YCH(R) with Subdweller Laser Last Messages --------------- 03784_ Acquired 13 matter. 03787_ The unstable cave ceiling collapses. 03792_ Sub. Laser crushed. 03932_ Acquired 13 matter. 03939_ S-10 Pest suffers critical hit (Impale). 03939_ Destroyed Lgt. Assault Rifle. 03942_ S-10 Pest destroyed. 03944_ Acquired 17 matter. 04060_ XY-SJI(R): "ARGHSUB!" 04062_ XY-SJI(R) destroyed. 04063_ TH-RDV(R): "NAT20!" 04064_ The unstable cave ceiling collapses. 04065_ TH-RDV(R) destroyed. 04069_ The unstable cave ceiling collapses. 04071_ Acquired 15 matter. 04073_ The unstable cave ceiling collapses. 04073_ 25 Matter crushed. 04074_ The unstable cave ceiling collapses. 04078_ 1W-YCH(R): "ARGHSUB!" 04079_ The unstable cave ceiling collapses. Map ----- +----------------------------------------------------+ | " "#?????????????????????????????????###??????## | | #?????????????????????????????????# ??##### | | "#?????????????????????????????????# #### # | | " #?????????????????????????????????# # = ## ## | | ######?????????????????????????????????# #######? | | ???????????????????????????????????????# ##??????? | | #??????????????????????????????????????# #???????? | | #?????????????????????????????????????? #???????? | | ??????????????????????????????????????# ???????? | | ??????????????????????????????????????# ???????? | | ??????????????????????????????????????# ???????? | | ??????????????????????????????????????# ???????? | | ??????????????????????????????????????# #??????? | | ?????????????????????????????????????? ??????? | | ?????????????????????????????????????? ??????? | | ?????????????????????????????????????? ??????? | | ?????????????????????????????????????? ??????? | | ?????????????????????????#####???????? " " ??????? | | ????????????????????????## ##??????""" """?????? | | ???????????????????????## ######??#?>?#??????? | | ???????????????????????# ######????????? | | ???????????????????????# = # #?????????? | | ????????????????????????# #?????????? | | ????????????????????????# [ #?????????? | | ???#####????????????????# | #?????????? | | #### ###??????? "????#@ R #?????????? | | ## #???????#""#???## #?????????? | | ###?????#" ##?## #?????????? | | #??????#"""### ###???????### | | #########"" ## ##### #?????????# | | # ##"" #####??#?????????## | | ##" #######???????## | | # ## & #"" " " ########## | | #### !& # #""" ###### | | ??# #"""" ##????## | | ??# * # "" " " #??????## ## | | ??# """ "" ##???????## ##? | | # """" "" ##???????#### ### | | """""""""" """ ##??????### ?### " | | """""""""""" ####???????# ?#### " "" | | # # """"""##???????#### ## ## " " | | #### #?# ##### # | | ???# ## # ## | | ??? ### ? ## ### | | ?? #??# ????##### #####?? | | ?? ## ###???# ## ?????????### ###?????? | | ?? ??###??????# ## ?????????????## #???????? | | ??????????????####? ????????????????# #???????? | | ????????????????????????????????####### #???????? | | ???????????????????????????????## ##??????? | +----------------------------------------------------+ Best States ------------- Heat Dissipation 25 Energy Generation 10 Energy Capacity 250 Matter Stores 300 Matter Capacity 300 Sight Range 16 Terrain Scan Density 10 Armor Coverage 150 Evasion (%) 40 Recoil Reduction 2 Item Schematics ----------------- None Robot Schematics ------------------ None Fabricated ------------ Nothing Repaired ---------- Nothing Alien Tech Used ----------------- None Achievements -------------- None Challenges ------------ None Game ------ Seed JammingAbsorptionManipulator Manual? 0 Play Time 00:17:17 Cumulative 248.7 hours Start 2025.08.10 @ 18:27:23 End 2025.08.10 @ 18:43:47 Sessions 1 Manual Loads 0 Difficulty Rogue Special Mode None Game No. 261 Rogue 261 Adventurer 0 Explorer 0 Win Type - Total 11 Types 5/0/3/1/0/0/0/1/0/1 Lore% 75 Gallery% 71 Achievement% 66 Wizard Run 0 Options --------- Layout 1 ASCII 0 Keyboard 1 Movement Numpad Keybinds 0 Fullscreen 1 Font 32/SmallcapsGlow Map View 77x35 Zoom Use 0% Tactical HUD 1 Map Filters NONE Filters NONE Steam 1 RUN: 4f1b96db-6d1f-4fab-a40e-15d75455bb14